Workbook

Sheet Disclaimer
D10: Disclaimer
D12: This Design Calculation Spreadsheet is provided "as-is" without warranty of any kind. The Montana Department of Transportation makes no representations or warranties whatsoever with respect to the accuracy or completeness of this tool and assumes no responsibility for the suitability of this tool for a particular purpose; and MDT will not be liable for any damages incurred as a result of errors in this tool. By selecting Accept, you are agreeing to these terms and conditions.
K22: WARNING: For the tool to work properly, please make sure you click on "Enable Content/Macros" if the security warning appears.

Sheet Appr_Surf_Quantities (hidden)
B2: Input Values
B3: PM Unit Weight | C3: 4167 | D3: lb/yd3 (Project Specific)
B4: PM Depth | C4: 0.2 | D4: ft
B5: CAC Depth | C5: 0.6 | D5: ft
B6: Emul. Asph. Tack | C6: 0.05 | D6: gal/yd2 (RDM App. J, pg 9)
B7: Bituminous Material | C7: 8.5 | D7: lb/gal (RDM App. J, pg 9)
B8: Seal | C8: 0.42 | D8: gal/yd2 (RDM App. J, pg 9)
B10: * Measured Quantities from "Approach Surfacing.dgn"
B11: * Measured Quantities (24' wide top)
C12: 12.0' | D12: 25.0' | E12: ADDL. FT.
B13: PM Surface Area | C13: 525.6382 | D13: 868.2523 | E13: 24
B14: Top CAC Surface Area | C14: 594.1054 | D14: 975.1293 | E14: 26.8
B15: Bot CAC Surface Area | C15: 757.1314 | D15: 1252.7047 | E15: 35
B17: **View "Approach Surfacing.dgn" for area measurements. Used average end area for PM and CAC. **Assumes a 24' wide approach with a 25' radius. Modify ApproachSurfacing.dgn for other conditions.
B23: PL. MIX BIT. SURF. | G23: CR. AGG. COURSE | K23: COVER
B25: Approach Length | C25: Area | D25: Volume | E25: Weight | G25: Approach Length | H25: Area | I25: Volume | K25: Approach Length | L25: Area | M25: Area
B26: ft | C26: ft2 | D26: yd3 | E26: tons | G26: ft | H26: ft2 | I26: yd3 | K26: ft | L26: ft2 | M26: yd2
B27: 12 | C27: =(C13+C14)/2 -> 559.8718 | D27: =(C27*$C$4)/27 -> 4.147198519 | E27: =ROUND(D27*$C$3/2000,1) -> 8.6 | G27: 25 | H27: =(D15+D14)/2 -> 1113.917 | I27: =ROUND(H27*$C$5/27,1) -> 24.8 | K27: 25 | L27: =D13 -> 868.2523 | M27: =ROUND(L27/9,0) -> 96
B28: 25 | C28: =(D13+D14)/2 -> 921.6908 | D28: =(C28*$C$4)/27 -> 6.827339259 | E28: =ROUND(D28*$C$3/2000,1) -> 14.2 | G28: ADDL. FT. | H28: =(E14+E15)/2 -> 30.9 | I28: =ROUND(H28*$C$5/27,1) -> 0.7 | K28: ADDL. FT. | L28: =E13 -> 24 | M28: =ROUND(L28/9,0) -> 3
B29: ADDL. FT. | C29: =(E13+E14)/2 -> 25.4 | D29: =(C29*$C$4)/27 -> 0.1881481481 | E29: 0.4
B34: EMUL. ASPH. TACK | G34: AGG. TREAT. | K34: SEAL
B36: Approach Length | C36: Asph. Tack Area | D36: Asph. Tack Gal. | G36: Approach Length | H36: Agg. Treat. Area | I36: Agg. Treat. Area | K36: Approach Length | L36: Area | M36: Seal Tons
B37: ft | C37: yd2 | D37: gals | G37: ft | H37: ft2 | I37: yd2 | K37: ft | L37: yd2 | M37: tons
B38: 12 | C38: =I38 -> 66 | D38: =ROUND(C38*$C$6,1) -> 3.3 | G38: 12 | H38: =C14 -> 594.1054 | I38: =ROUND(H38/9,0) -> 66 | K38: 25 | L38: =M27 -> 96 | M38: =ROUND(L38*$C$8*$C$7*1/2000,2) -> 0.17
B39: 25 | C39: =I39 -> 108 | D39: =ROUND(C39*$C$6,1) -> 5.4 | G39: 25 | H39: =D14 -> 975.1293 | I39: =ROUND(H39/9,0) -> 108 | K39: ADDL. FT. | L39: =M28 -> 3 | M39: =ROUND(L39*$C$8*$C$7*1/2000,2) -> 0.01
B40: ADDL. FT. | C40: =I40 -> 3 | D40: =ROUND(C40*$C$6,1) -> 0.2 | G40: ADDL. FT. | H40: =E14 -> 26.8 | I40: 3
B42: * Measured Quantities (30' wide top)
C43: 12.0' | D43: 25.0' | E43: ADDL. FT.
B44: PM Surface Area | C44: 597.6382 | D44: 1018.2523 | E44: 30
B45: Top CAC Surface Area | C45: 666.1054 | D45: 1125.1293 | E45: 32.8
B46: Bot CAC Surface Area | C46: 829.1314 | D46: 1402.7047 | E46: 41
B48: **View Approach Surfacing.dgn for area measurements. Used average end area for PM and CAC. **Assumes a 30' wide approach with a 25' radius. Modify ApproachSurfacing.dgn for other conditions.
B54: PL. MIX BIT. SURF. | G54: CR. AGG. COURSE | K54: COVER
B56: Approach Length | C56: Area | D56: Volume | E56: Weight | G56: Approach Length | H56: Area | I56: Volume | K56: Approach Length | L56: Area | M56: Area
B57: ft | C57: ft2 | D57: yd3 | E57: tons | G57: ft | H57: ft2 | I57: yd3 | K57: ft | L57: ft2 | M57: yd2
B58: 12 | C58: =(C44+C45)/2 -> 631.8718 | D58: =(C58*$C$4)/27 -> 4.680531852 | E58: =ROUND(D58*$C$3/2000,1) -> 9.8 | G58: 25 | H58: =(D46+D45)/2 -> 1263.917 | I58: =ROUND(H58*$C$5/27,1) -> 28.1 | K58: 25 | L58: =D44 -> 1018.2523 | M58: =ROUND(L58/9,0) -> 113
B59: 25 | C59: =(D44+D45)/2 -> 1071.6908 | D59: =(C59*$C$4)/27 -> 7.93845037 | E59: =ROUND(D59*$C$3/2000,1) -> 16.5 | G59: ADDL. FT. | H59: =(E14+E15)/2 -> 30.9 | I59: =ROUND(H59*$C$5/27,1) -> 0.7 | K59: ADDL. FT. | L59: =E13 -> 24 | M59: =ROUND(L59/9,0) -> 3
B60: ADDL. FT. | C60: =(E44+E45)/2 -> 31.4 | D60: =(C60*$C$4)/27 -> 0.2325925926 | E60: 0.5
B65: EMUL. ASPH. TACK | G65: AGG. TREAT. | K65: SEAL
B67: Approach Length | C67: Asph. Tack Area | D67: Asph. Tack Gal. | G67: Approach Length | H67: Agg. Treat. Area | I67: Agg. Treat. Area | K67: Approach Length | L67: Area | M67: Seal Tons
B68: ft | C68: yd2 | D68: gals | G68: ft | H68: ft2 | I68: yd2 | K68: ft | L68: yd2 | M68: tons
B69: 12 | C69: =I69 -> 74 | D69: =ROUND(C69*$C$6,1) -> 3.7 | G69: 12 | H69: =C45 -> 666.1054 | I69: =ROUND(H69/9,0) -> 74 | K69: 25 | L69: =M58 -> 113 | M69: =ROUND(L69*$C$8*$C$7*1/2000,2) -> 0.2
B70: 25 | C70: =I70 -> 125 | D70: =ROUND(C70*$C$6,1) -> 6.3 | G70: 25 | H70: =D45 -> 1125.1293 | I70: =ROUND(H70/9,0) -> 125 | K70: ADDL. FT. | L70: =M59 -> 3 | M70: =ROUND(L70*$C$8*$C$7*1/2000,2) -> 0.01
B71: ADDL. FT. | C71: =I71 -> 4 | D71: =ROUND(C71*$C$6,1) -> 0.2 | G71: ADDL. FT. | H71: =E45 -> 32.8 | I71: 4

Sheet Appr_Surf_Calc (hidden)
H2: INPUTS
H3: Mainline Roadway Width to Shld. | I3: =12+4 -> 16 | J3: linear ft
H4: Radius & 1ST ft quantities | I4: 25 | J4: linear ft
H5: PM Unit Weight Appr_Surf_Quantities | I5: =Appr_Surf_Quantities!C3 -> 4167 | J5: lb/yd3
H6: PM Unit Weight Project | I6: 4167 | J6: lb/yd3
H8: PL. MIX. BIT SURF.
H9: OVERLAY PROJECTS - 3.0' PM STRIP | I9: =ROUND(2.3*I6/I5,1) -> 2.3 | J9: tons
H10: 1ST 25' W/ 12' PL. MIX STRIP | I10: =ROUND(Appr_Surf_Quantities!E27*(I6/I5),1) -> 8.6 | J10: tons
H11: 1ST 25' PL. MIX SURFACED | I11: =ROUND(Appr_Surf_Quantities!E28*(I6/I5),1) -> 14.2 | J11: tons
H12: EACH ADDITIONAL FOOT PL. MIX | I12: =ROUND(Appr_Surf_Quantities!E29*(I6/I5),1) -> 0.4 | J12: tons
H14: CR. AGG. COURSE
H15: 1ST 25' CR. AGG. COURSE | I15: =ROUND(Appr_Surf_Quantities!I27*(I6/I5),1) -> 24.8 | J15: yd3
H16: EACH ADDITIONAL FOOT CR. AGG. COURSE | I16: =ROUND(Appr_Surf_Quantities!I28*(I6/I5),1) -> 0.7 | J16: yd3
H18: EMUL. ASPH. TACK
H19: 1ST 25' W/ 12' PL. MIX STRIP | I19: =ROUND(Appr_Surf_Quantities!D38*(I6/I5),1) -> 3.3 | J19: gals
H20: 1ST 25' PL. MIX SURFACED | I20: =ROUND(Appr_Surf_Quantities!D39*(I6/I5),1) -> 5.4 | J20: gals
H21: EACH ADDITIONAL FOOT EMUL. ASPH. TACK | I21: =ROUND(Appr_Surf_Quantities!D40*(I6/I5),1) -> 0.2 | J21: gals
H23: AGG. TREAT.
H24: 1ST 25' W/ 12' PL. MIX STRIP | I24: =Appr_Surf_Quantities!I38 -> 66 | J24: yd2
H25: 1ST 25' PL. MIX SURFACED | I25: =Appr_Surf_Quantities!I39 -> 108 | J25: yd2
H26: EACH ADDITIONAL FOOT AGG. TREAT. | I26: =Appr_Surf_Quantities!I40 -> 3 | J26: yd2
H28: COVER
H29: 1ST 25' | I29: =Appr_Surf_Quantities!M27 -> 96 | J29: yd2
H30: EACH ADDITIONAL FOOT COVER | I30: =Appr_Surf_Quantities!M28 -> 3 | J30: yd2
H32: SEAL
H33: 1ST 25' | I33: =Appr_Surf_Quantities!M38 -> 0.17 | J33: tons
H34: EACH ADDITIONAL FOOT SEAL | I34: =Appr_Surf_Quantities!M39 -> 0.01 | J34: tons
H36: NOTE: All quantities are based on the typical 24' approach with a 25' radius. Only adjustment is for the different plant mix unit weight.
B37: SPREADSHEET SETUP:
B38: *FARM FIELD APPR. GET PAVED FIRST 12', GRAVEL TO ROW (typically, unless we get a permit and extend the approach past row)
B39: **PRIVATE APPR. GET PAVED TO ROW, GRAVEL TO END
B40: ***PUBLIC APPR. GET PAVED TO END
B42: >> ALL QUANTITES ASSUME 24' TOP WIDTH; INPUT PLANT MIX UNIT WEIGHT IN 'Appr_Surf_Quantities' TAB
B44: APPROACHES (INCLUDED IN ADDITIONAL SURFACING FRAME)
B45: STATION | C45: TYPE | D45: linear feet | H45: PROPOSED SURFACE | I45: tons | L45: cubic yards | O45: gals | R45: square yards | U45: square yards | X45: tons | AA45: REMARKS
D46: LENGTH, C.L. TO R/W | E46: LENGTH, PAST R/W | F46: LENGTH, MAINLINE | G46: LENGTH, APPROACH | I46: PLANT MIX BIT. SURF. | L46: CRUSHED AGG. COURSE | O46: EMULSIFIED ASPHALT TACK | R46: AGG. TREAT. | U46: COVER | X46: SEAL
I47: 1ST 25' | J47: ADDL. | K47: TOTAL | L47: 1ST 25' | M47: ADDL. | N47: TOTAL | O47: 1ST 25' | P47: ADDL. | Q47: TOTAL | R47: 1ST 25' | S47: ADDL. | T47: TOTAL | U47: 1ST 25' | V47: ADDL. | W47: TOTAL | X47: 1ST 25' | Y47: ADDL. | Z47: TOTAL
G50: =IF(D50="","",SUM(D50:E50)-F50) ->  | I50: =IF(C50="","",IF(C50="FARM FIELD",$I$10,IF(OR(C50="PRIVATE",C50="PUBLIC"),$I$11,"FALSE"))) ->  | J50: =IF(C50="","",IF(C50="FARM FIELD",0,IF(AND(G50>=$I$4,C50="PRIVATE"),((D50-F50)-$I$4)*$I$12,IF(AND(G50>=$I$4,C50="PUBLIC"),(G50-$I$4)*$I$12,"FALSE")))) ->  | K50: =IF(C50="","",ROUND(SUM(I50:J50),0)) ->  | L50: =IF(C50="","",IF(G50>=$I$4,$I$15,"FALSE")) ->  | M50: =IF(C50="","",IF(G50>=$I$4,(G50-$I$4)*$I$16,"FALSE")) ->  | N50: =IF(F50="","",ROUND(SUM(L50:M50),0)) ->  | O50: =IF(C50="","",IF(C50="FARM FIELD",$I$19,IF(OR(C50="PRIVATE",C50="PUBLIC"),$I$20,"FALSE"))) ->  | P50: =IF(C50="","",IF(C50="FARM FIELD",0,IF(AND(G50>=$I$4,C50="PRIVATE"),((D50-F50)-$I$4)*$I$21,IF(AND(G50>=$I$4,C50="PUBLIC"),(G50-$I$4)*$I$21,"FALSE")))) ->  | Q50: =IF(I50="","",ROUND(SUM(O50:P50),0)) ->  | R50: =IF(C50="","",IF(C50="FARM FIELD",$I$24,IF(OR(C50="PRIVATE",C50="PUBLIC"),$I$25,"FALSE"))) ->  | S50: =IF(C50="","",IF(C50="FARM FIELD",0,IF(AND(G50>=$I$4,C50="PRIVATE"),((D50-F50)-$I$4)*$I$26,IF(AND(G50>=$I$4,C50="PUBLIC"),(G50-$I$4)*$I$26,"FALSE")))) ->  | T50: =IF(L50="","",ROUND(SUM(R50:S50),0)) ->  | U50: =IF(OR(C50="",C50="FARM FIELD",C50="PRIVATE"),"",IF(C50="PUBLIC",$I$29,"FALSE")) ->  | V50: =IF(OR(C50="",C50="FARM FIELD",C50="PRIVATE"),"",IF(AND(C50="PUBLIC",G50>=$I$4),(G50-$I$4)*$I$30,"FALSE")) ->  | W50: =IF(SUM(U50:V50)=0,"",ROUND(SUM(U50:V50),0)) ->  | X50: =IF(OR(C50="",C50="FARM FIELD",C50="PRIVATE"),"",IF(C50="PUBLIC",$I$33,"FALSE")) ->  | Y50: =IF(OR(C50="",C50="FARM FIELD",C50="PRIVATE"),"",IF(AND(C50="PUBLIC",G50>=$I$4),(G50-$I$4)*$I$34,"FALSE")) ->  | Z50: =IF(SUM(X50:Y50)=0,"",ROUND(SUM(X50:Y50),1)) -> 
G51: =IF(D51="","",SUM(D51:E51)-F51) ->  | I51: =IF(C51="","",IF(C51="FARM FIELD",$I$10,IF(OR(C51="PRIVATE",C51="PUBLIC"),$I$11,"FALSE"))) ->  | J51: =IF(C51="","",IF(C51="FARM FIELD",0,IF(AND(G51>=$I$4,C51="PRIVATE"),((D51-F51)-$I$4)*$I$12,IF(AND(G51>=$I$4,C51="PUBLIC"),(G51-$I$4)*$I$12,"FALSE")))) ->  | K51: =IF(C51="","",ROUND(SUM(I51:J51),0)) ->  | L51: =IF(C51="","",IF(G51>=$I$4,$I$15,"FALSE")) ->  | M51: =IF(C51="","",IF(G51>=$I$4,(G51-$I$4)*$I$16,"FALSE")) ->  | N51: =IF(F51="","",ROUND(SUM(L51:M51),0)) ->  | O51: =IF(C51="","",IF(C51="FARM FIELD",$I$19,IF(OR(C51="PRIVATE",C51="PUBLIC"),$I$20,"FALSE"))) ->  | P51: =IF(C51="","",IF(C51="FARM FIELD",0,IF(AND(G51>=$I$4,C51="PRIVATE"),((D51-F51)-$I$4)*$I$21,IF(AND(G51>=$I$4,C51="PUBLIC"),(G51-$I$4)*$I$21,"FALSE")))) ->  | Q51: =IF(I51="","",ROUND(SUM(O51:P51),0)) ->  | R51: =IF(C51="","",IF(C51="FARM FIELD",$I$24,IF(OR(C51="PRIVATE",C51="PUBLIC"),$I$25,"FALSE"))) ->  | S51: =IF(C51="","",IF(C51="FARM FIELD",0,IF(AND(G51>=$I$4,C51="PRIVATE"),((D51-F51)-$I$4)*$I$26,IF(AND(G51>=$I$4,C51="PUBLIC"),(G51-$I$4)*$I$26,"FALSE")))) ->  | T51: =IF(L51="","",ROUND(SUM(R51:S51),0)) ->  | U51: =IF(OR(C51="",C51="FARM FIELD",C51="PRIVATE"),"",IF(C51="PUBLIC",$I$29,"FALSE")) ->  | V51: =IF(OR(C51="",C51="FARM FIELD",C51="PRIVATE"),"",IF(AND(C51="PUBLIC",G51>=$I$4),(G51-$I$4)*$I$30,"FALSE")) ->  | W51: =IF(SUM(U51:V51)=0,"",ROUND(SUM(U51:V51),0)) ->  | X51: =IF(OR(C51="",C51="FARM FIELD",C51="PRIVATE"),"",IF(C51="PUBLIC",$I$33,"FALSE")) ->  | Y51: =IF(OR(C51="",C51="FARM FIELD",C51="PRIVATE"),"",IF(AND(C51="PUBLIC",G51>=$I$4),(G51-$I$4)*$I$34,"FALSE")) ->  | Z51: =IF(SUM(X51:Y51)=0,"",ROUND(SUM(X51:Y51),1)) -> 
G115: =IF(D115="","",SUM(D115:E115)-F115) ->  | I115: =IF(C115="","",IF(C115="FARM FIELD",$I$10,IF(OR(C115="PRIVATE",C115="PUBLIC"),$I$11,"FALSE"))) ->  | J115: =IF(C115="","",IF(C115="FARM FIELD",0,IF(AND(G115>=$I$4,C115="PRIVATE"),((D115-F115)-$I$4)*$I$12,IF(AND(G115>=$I$4,C115="PUBLIC"),(G115-$I$4)*$I$12,"FALSE")))) ->  | K115: =IF(C115="","",ROUND(SUM(I115:J115),0)) ->  | L115: =IF(C115="","",IF(G115>=$I$4,$I$15,"FALSE")) ->  | M115: =IF(C115="","",IF(G115>=$I$4,(G115-$I$4)*$I$16,"FALSE")) ->  | N115: =IF(F115="","",ROUND(SUM(L115:M115),0)) ->  | O115: =IF(C115="","",IF(C115="FARM FIELD",$I$19,IF(OR(C115="PRIVATE",C115="PUBLIC"),$I$20,"FALSE"))) ->  | P115: =IF(C115="","",IF(C115="FARM FIELD",0,IF(AND(G115>=$I$4,C115="PRIVATE"),((D115-F115)-$I$4)*$I$21,IF(AND(G115>=$I$4,C115="PUBLIC"),(G115-$I$4)*$I$21,"FALSE")))) ->  | Q115: =IF(I115="","",ROUND(SUM(O115:P115),0)) ->  | R115: =IF(C115="","",IF(C115="FARM FIELD",$I$24,IF(OR(C115="PRIVATE",C115="PUBLIC"),$I$25,"FALSE"))) ->  | S115: =IF(C115="","",IF(C115="FARM FIELD",0,IF(AND(G115>=$I$4,C115="PRIVATE"),((D115-F115)-$I$4)*$I$26,IF(AND(G115>=$I$4,C115="PUBLIC"),(G115-$I$4)*$I$26,"FALSE")))) ->  | T115: =IF(L115="","",ROUND(SUM(R115:S115),0)) ->  | U115: =IF(OR(C115="",C115="FARM FIELD",C115="PRIVATE"),"",IF(C115="PUBLIC",$I$29,"FALSE")) ->  | V115: =IF(OR(C115="",C115="FARM FIELD",C115="PRIVATE"),"",IF(AND(C115="PUBLIC",G115>=$I$4),(G115-$I$4)*$I$30,"FALSE")) ->  | W115: =IF(SUM(U115:V115)=0,"",ROUND(SUM(U115:V115),0)) ->  | X115: =IF(OR(C115="",C115="FARM FIELD",C115="PRIVATE"),"",IF(C115="PUBLIC",$I$33,"FALSE")) ->  | Y115: =IF(OR(C115="",C115="FARM FIELD",C115="PRIVATE"),"",IF(AND(C115="PUBLIC",G115>=$I$4),(G115-$I$4)*$I$34,"FALSE")) ->  | Z115: =IF(SUM(X115:Y115)=0,"",ROUND(SUM(X115:Y115),1)) -> 
G130: =IF(D130="","",SUM(D130:E130)-F130) -> 
